Cogmind - Beta 17 @@@ ROGUE MODE // 2026.07.18 @ 19:51:42 Player: kite Result: Self-destructed Performance ------------- Evolutions (3) 1500 Regions Visited (5) 1000 Robots Destroyed (134) 670 Value Destroyed (3106) 3106 Prototype IDs (2) 40 Alien Tech Used (0) 0 Bonus (178) 178 TOTAL SCORE: 6494 Bonus ------- High Alert Combat Kills 178 Cogmind --------- Core Integrity 683/700 Matter 223/300 Energy 280/280 System Corruption 2% Temperature Cool (0) Movement Treading (160) Location -7/Factory Parts ------- > --- POWER (1) -------- Heavy Ion Engine > --- PROPULSION (6) --- Light Treads Light Treads Light Treads Light Treads Medium Treads Medium Treads > --- UTILITY (4) ------ Huge Storage Unit Seismic Detector Improved Melee Analysis Suite Hardened Medium Armor Plating > --- WEAPON (2) ------- Powered Hammer Chainsword > --- INVENTORY (25) --- Light Treads Light Treads Medium Treads Medium Treads Structural Scanner Machine Analyzer Advanced Visual Processing Unit Improved Sensor Array Improved Sensor Array Improved Signal Interpreter Improved Terrain Scanner Improved Melee Analysis Suite Transmission Jammer Hardened Medium Armor Plating Hardened Medium Armor Plating Hardened Medium Armor Plating Hacking Suite Rocket Launcher Heavy Hammer Heavy Hammer Katana Scythe Chainsword Chainsword Peak State ------------ > --- POWER ------------ Light Nuclear Core > --- PROPULSION ------- Light Treads Light Treads Light Treads Light Treads Medium Treads Medium Treads > --- UTILITY ---------- Huge Storage Unit Improved Sensor Array Improved Melee Analysis Suite Hardened Medium Armor Plating > --- WEAPON ----------- Heavy Hammer Chainsword > --- INVENTORY -------- Heavy Ion Engine Light Treads Light Treads Medium Treads Medium Treads Advanced Weight Redist. System Structural Scanner Machine Analyzer Advanced Visual Processing Unit Improved Sensor Array Improved Signal Interpreter Improved Terrain Scanner Improved Melee Analysis Suite Transmission Jammer Hardened Medium Armor Plating Hardened Medium Armor Plating Hardened Medium Armor Plating Hacking Suite Rocket Launcher Heavy Hammer Heavy Hammer Heavy Hammer Katana Scythe Chainsword [Rating: 39] Favorites ----------- Power Heavy Ion Engine Engine Heavy Ion Engine Power Core Light Nuclear Core Propulsion Light Treads Treads Light Treads Leg Aluminum Leg Wheel Wheel Utility Huge Storage Unit Device Cooling System Storage Huge Storage Unit Processor Improved Melee Analysis Suite Protection Light Armor Plating Weapon Spread Laser Energy Gun Spread Laser Energy Cannon Advanced Beam Cannon Ballistic Gun Light Assault Rifle Launcher Rocket Launcher Impact Weapon Heavy Hammer Slashing Weapon Katana Build | -11 -10 -10 -9 -8 -7 ------- Run | Yrd Mat Min Mat Mat Fac Slots Evolved 6 | . . . 2 2 2 Power . | . . . . . . Propulsion 4 | . . . 2 2 . Utility 2 | . . . . . 2 Weapon . | . . . . . . Parts Attached 77 | 6 8 7 26 22 8 Power 5 | 1 1 . 1 1 1 Engine 4 | 1 1 . 1 . 1 Core 1 | . . . . 1 . Reactor . | . . . . . . Propulsion 33 | 2 . 4 14 13 . Treads 19 | 2 . . 4 13 . Leg 4 | . . 2 2 . . Wheel 10 | . . 2 8 . . Hover . | . . . . . . Flight . | . . . . . . Utility 18 | 1 3 1 3 6 4 Device 9 | . 1 1 2 2 3 Storage 3 | 1 2 . . . . Processor 3 | . . . . 3 . Hackware . | . . . . . . Protection 3 | . . . 1 1 1 Artifact . | . . . . . . Weapon 21 | 2 4 2 8 2 3 Energy Gun 6 | . 4 2 . . . Energy Cannon 5 | . . . 5 . . Ballistic Gun 2 | 2 . . . . . Ballistic Cannon . | . . . . . . Launcher 2 | . . . 1 . 1 Special Weapon . | . . . . . . Impact Weapon 4 | . . . 2 1 1 Slashing Weapon 2 | . . . . 1 1 Piercing Weapon . | . . . . . . Special Melee Weapon . | . . . . . . Unidentified Prototypes 2 | . 1 . 1 . . Parts Lost 18 | . . 4 5 8 1 Power 2 | . . . 1 . 1 Propulsion 12 | . . 2 3 7 . Utility 1 | . . . 1 . . Weapon 3 | . . 2 . 1 . Highest Loss Streak 4 | . . 4 1 3 1 To Critical Strikes . | . . . . . . Average Backups 19 | 3 10 14 22 23 24 Power . | . 1 1 . . . Propulsion 3 | 1 1 3 4 2 4 Utility 11 | . 5 8 11 16 13 Weapon 3 | . 1 1 4 3 6 Tool/Special . | . . . . . . Unused Backups 39 | . 4 . 10 7 18 Power 2 | . 2 . . . . Propulsion 2 | . 1 . 1 . . Utility 22 | . 1 . 3 6 12 Weapon 12 | . . . 6 . 6 Tool/Special 1 | . . . . 1 . Average Slot Usage (%) 98 | . 96 99 98 98 99 Engine 8 | . 14 14 11 2 . Core 2 | . . . . 6 6 Treads 30 | . 28 18 10 52 45 Leg 1 | . . 3 4 . . Wheel 9 | . . 5 27 . . Device 7 | . 11 14 8 1 10 Storage 10 | . 14 14 11 9 7 Processor 2 | . . . . 4 7 Protection 2 | . . . 2 2 3 Energy Gun 8 | . 25 27 3 . . Energy Cannon 3 | . . . 9 . . Impact Weapon 6 | . . . 8 10 7 Slashing Weapon 3 | . . . . 7 6 Peak Build Rating 39 | 6 14 14 20 37 39 Average Rating 20 | 5 12 13 17 23 36 On Entrance 13 | . 6 14 13 16 31 Avg Prop Armor Cover (%) 13 | . . . 13 . . Naked Turns . | . . . . . . Heaviest Build 104 | 12 96 96 98 97 104 Greatest Support 152 | 40 40 40 80 152 136 Greatest Overweight (x) 9 | . 2 9 9 1 1 Average Overweight (x) 1 | . . 2 2 . . Largest Inventory Capacity 25 | 8 25 25 25 25 25 Average Capacity 23 | 7 18 25 25 25 25 Most Carried 25 | 7 13 16 25 25 25 Average Carried 19 | 3 10 14 22 23 24 Final Capacity 25 | 8 25 25 25 25 25 Final Carried 25 | 7 13 12 23 25 24 Class Distribution -------------------- 41% | Scavenger-Mutant 32% | Mutant 26% | Scavenger-Gladiator Dominant Class ---------------- Mutant | -10/Materials Mutant | -10/Mines Scavenger-Mutant | -9/Materials Scavenger-Gladiator | -8/Materials Scavenger-Gladiator | -7/Factory Resources | -11 -10 -10 -9 -8 -7 ----------- Run | Yrd Mat Min Mat Mat Fac Matter Collected 1238 | 74 131 237 338 388 70 Remotely . | . . . . . . Salvage Created 4140 | 98 185 428 2091 1050 288 Parts 252 | 10 12 36 131 41 22 Haulers Intercepted 5 | . . . 5 . . Recyclers Shooed 3 | 1 1 . 1 . . Parts Field Recycled . | . . . . . . Retrieved Matter . | . . . . . . Parts Self-Destructed . | . . . . . . Prevented . | . . . . . . Parts Restored . | . . . . . . Kills | -11 -10 -10 -9 -8 -7 ------- Run | Yrd Mat Min Mat Mat Fac Combat Hostiles Destroyed 79 | . 6 13 40 19 1 Melee 20 | . . . 8 12 . Guns 23 | . 6 13 4 . . Cannons 19 | . . . 19 . . AOE 6 | . . . 4 1 1 Classes Destroyed 16 | 1 4 3 6 1 1 Worker 13 | . 1 . 7 5 . Builder 13 | . . 4 4 1 4 Tunneler 11 | 5 . 2 3 . 1 Hauler 5 | . . . 5 . . Recycler 10 | . 1 3 2 1 3 Mechanic 1 | . . . 1 . . Watcher 4 | . . . 3 1 . Swarmer 15 | . 3 8 4 . . Grunt 46 | . 3 2 26 15 . Duelist 1 | . . . 1 . . Protector 1 | . . . 1 . . Sentry 11 | . . . 8 3 . Demolisher 1 | . . 1 . . . Hunter 1 | . . . . 1 . Programmer 1 | . . . . . 1 Assembled 2 | . . 2 . . . Best Kill Streak 7 | 2 2 5 7 6 5 Combat Bots Only 6 | . 2 3 5 6 1 Max Kills in Single Turn 3 | 1 1 2 3 1 2 Gunslinging 1 | . . 1 . . . Exploded 3 | . . . 3 1 1 Melee 1 | . . . 1 1 . Uniques/NPCs Destroyed . | . . . . . . Combat | -11 -10 -10 -9 -8 -7 -------- Run | Yrd Mat Min Mat Mat Fac Hostile Shots Fired 345 | . 23 39 143 123 17 Missed 87 | . 4 11 41 28 3 Hits 258 | . 19 28 102 95 14 Melee 1 | . . . 1 . . Projectile 257 | . 19 28 101 95 14 AOE 11 | . . 11 . . . Critical Strikes 10 | . . . 1 7 2 Part Disruptions 1 | . . 1 . . . Damage Taken 3640 | . 187 607 1214 1416 216 Core 534 | . 22 171 161 163 17 Absorbed by Shields 28 | . . . . 28 . Redirected to Shielding 66 | . . . . 66 . Regen/Repaired (Parts) 288 | . . . 218 . 70 Core Remaining (%) 62 | 100 . 22 59 70 . Volleys Fired 192 | 31 24 31 99 5 2 Largest 2 | 2 2 2 2 1 1 Hottest 136 | 40 130 130 136 33 33 Shots Fired 360 | 62 48 56 187 5 2 Gun 205 | 62 48 56 39 . . Cannon 144 | . . . 144 . . Launcher 11 | . . . 4 5 2 Special . | . . . . . . Kinetic 62 | 62 . . . . . Thermal 287 | . 48 56 183 . . Explosive 11 | . . . 4 5 2 Electromagnetic . | . . . . . . Robot Hit Streak 28 | 7 12 7 28 2 4 Robot Miss Streak 8 | 3 8 8 7 1 . Penetration Max . | . . . . . . Secondary Targets 3 | . 1 2 . . . Max Gunslinging Chain 1 | . 1 1 . . . Shots Hit Robots 364 | 42 43 49 155 66 9 Core Hits 244 | 12 40 71 96 17 8 Critical Kills 4 | . . . 3 1 . Critical Parts Destroyed 11 | . . . 6 5 . Critical Strikes 18 | . . . 9 8 1 Meltdown 1 | . . . 1 . . Smash 14 | . . . 8 6 . Sever 3 | . . . . 2 1 Melee Attacks 149 | . . . 42 83 24 Impact 97 | . . . 42 45 10 Slashing 52 | . . . . 38 14 Piercing . | . . . . . . Sneak Attacks 17 | . . . 5 8 4 Combat Hostiles . | . . . . . . Follow-up Attacks 11 | . . . 5 6 . Damage Inflicted 9572 | 305 531 624 4318 2938 856 Guns 1965 | 305 530 610 520 . . Cannons 1844 | . . . 1844 . . Explosions 1161 | . . . 420 324 417 Melee 4575 | . . . 1526 2610 439 Ramming 27 | . 1 14 8 4 . Kinetic 305 | 305 . . . . . Thermal 3504 | . 530 610 2364 . . Explosive 1161 | . . . 420 324 417 Electromagnetic . | . . . . . . Impact 3210 | . . . 1526 1632 52 Slashing 1365 | . . . . 978 387 Piercing . | . . . . . . Highest Corruption 3 | . . . . 3 2 Average Corruption 2 | . . . . 2 1 Corruption Purged 3 | . . . . 3 . Corruption Blocked . | . . . . . . Effects 8 | . . . . 7 1 Message Errors 3 | . . . . 2 1 Matter Fused 1 | . . . . 1 . Heat Flow Errors 2 | . . . . 2 . Energy Discharges 2 | . . . . 2 . Overload Shots . | . . . . . . Overflow Damage 1217 | . . . 542 525 150 Projectiles 31 | . . . 31 . . Explosions 60 | . . . . . 60 Melee 1126 | . . . 511 525 90 Knockbacks 10 | . . . 4 6 . Impact 9 | . . . 3 6 . Kinetic . | . . . . . . Secondary 1 | . . . 1 . . Self-Inflicted Damage 13 | . . . 13 . . Shots 1 | . . . 1 . . Rammed 4 | . 1 1 1 1 . Targets Rammed 5 | . 1 2 1 1 . Kicked . | . . . . . . Crushed 1 | . . 1 . . . Highest Temperature 286 | . 36 286 59 217 13 Average Temperature 31 | . 13 80 9 57 13 Received Heat Transfer 1539 | . 60 96 465 855 63 Siege Activations . | . . . . . . Martial Activations . | . . . . . . Shielding Activations . | . . . . . . Robots Disrupted . | . . . . . . Combat Hostiles . | . . . . . . Robots Corrupted 13 | . . . 5 8 . Combat Hostiles 10 | . . . 4 6 . Parts Fried 16 | . . . 12 4 . Impact Corruptions 38 | . . . 21 17 . Robots Melted 1 | . . . 1 . . Combat Hostiles 1 | . . . 1 . . Parts Melted 4 | . . . 4 . . Heat Transferred 5415 | . 675 765 3975 . . Parts Sabotaged . | . . . . . . Parts Stolen . | . . . . . . Parts Stripped . | . . . . . . Power Chain Reactions . | . . . . . . Alert | -11 -10 -10 -9 -8 -7 ------- Run | Yrd Mat Min Mat Mat Fac Maximum Alert Level 3 | . . . 3 1 . Low Security (%) 51 | 100 100 100 32 . 100 Level 1 33 | . . . 20 100 . Level 2 9 | . . . 30 . . Level 3 5 | . . . 16 . . Level 4 . | . . . . . . Level 5 . | . . . . . . High Security . | . . . . . . Max Security . | . . . . . . Peak Influence 814 | 5 50 85 814 368 151 Initial 338 | . . 1 . 338 121 Average 208 | 1 9 28 376 306 34 Influence Increases 2635 | 25 174 305 1380 566 185 Destroy 0b10 Robot/C 1520 | . 120 220 780 380 20 Destroy 0b10 Robot/NC 290 | 25 10 45 130 40 40 Destroy Leader 378 | . 30 40 216 82 10 Successful Hack 37 | . 14 . 11 12 . Select Force Hacks 30 | . . . 30 . . Disable Machine 105 | . . . 30 15 60 Destroy Structure 110 | . . . 33 22 55 Lose Combat Pursuer 165 | . . . 150 15 . Influence Decreases 2500 | 25 170 309 580 1098 318 Entered New Map 612 | . . 3 . 462 147 Time Decay 1709 | 25 170 247 540 556 171 Lost Part 140 | . . 20 40 80 . Lost Ally 39 | . . 39 . . . Squads Dispatched 16 | . 1 . 8 4 3 Investigation 9 | . 1 . 6 1 1 Extermination 1 | . . . . . 1 Reinforcement 5 | . . . 1 3 1 Assault 1 | . . . 1 . . Garrison . | . . . . . . Intercept . | . . . . . . Searches Triggered . | . . . . . . Construction Impeded 1 | . . . . . 1 Haulers Reinforced . | . . . . . . Active Scanning Responses . | . . . . . . Cargo Convoy Interrupts . | . . . . . . Stealth | -11 -10 -10 -9 -8 -7 --------- Run | Yrd Mat Min Mat Mat Fac Distress Signals 13 | . 2 1 5 4 1 Communications Jammed . | . . . . . . Distress Signals . | . . . . . . Times Spotted 126 | . 16 16 59 28 7 Peak Tracking Total 7 | . 5 3 5 7 5 Tactical Retreats 8 | . . . 7 1 . Traps | -11 -10 -10 -9 -8 -7 ------- Run | Yrd Mat Min Mat Mat Fac Traps Triggered 8 | . 1 . 3 3 1 Indirectly . | . . . . . . Trap Hack Attempts . | . . . . . . Triggered . | . . . . . . Disarmed . | . . . . . . Reprogrammed . | . . . . . . Reused . | . . . . . . Traps Extracted . | . . . . . . Installed . | . . . . . . Triggered . | . . . . . . Machines | -11 -10 -10 -9 -8 -7 ---------- Run | Yrd Mat Min Mat Mat Fac Machines Disabled 7 | . . . 2 1 4 Max in Single Turn 2 | . . . 1 1 2 Machines Repaired . | . . . . . . Machines Dismantled . | . . . . . . Machines Sabotaged . | . . . . . . Overloaded Fab Kills . | . . . . . . Hacking | -11 -10 -10 -9 -8 -7 --------- Run | Yrd Mat Min Mat Mat Fac Machines Accessed 11 | . 2 . 6 2 1 Terminals 6 | . 2 . 3 1 . Fabricators . | . . . . . . Repair Stations 3 | . . . 2 . 1 Recycling Units 1 | . . . 1 . . Scanalyzers 1 | . . . . 1 . Garrison Access . | . . . . . . Total Hacks 24 | . 5 . 11 7 1 Successful 11 | . 2 . 7 1 1 Failed 13 | . 3 . 4 6 . Catastrophic 1 | . . . . 1 . Database Lockouts . | . . . . . . Manual 17 | . 5 . 8 3 1 Terminals 12 | . 5 . 4 3 . Fabricators . | . . . . . . Repair Stations 5 | . . . 4 . 1 Recycling Units 3 | . . . 3 . . Scanalyzers 4 | . . . . 4 . Garrison Access . | . . . . . . Terminal Hacks 5 | . 2 . 3 . . Part Schematic 2 | . 2 . . . . Registered Components 1 | . . . 1 . . Zone Layout 2 | . . . 2 . . Fabricator Hacks . | . . . . . . Repair Station Hacks 2 | . . . 2 . . Scan Component 1 | . . . 1 . . Repair 1 | . . . 1 . . Recycling Unit Hacks . | . . . . . . Scanalyzer 1 | . . . . 1 . Retrieve Study 1 | . . . . 1 . Garrison Access Hacks . | . . . . . . Unauthorized Hacks 3 | . . . 2 . 1 Terminals . | . . . . . . Fabricators . | . . . . . . Repair Stations 2 | . . . 1 . 1 Patch 2 | . . . 1 . 1 Recycling Units 1 | . . . 1 . . Tunnel 1 | . . . 1 . . Scanalyzers . | . . . . . . Garrison Access . | . . . . . . Data Cores Recovered . | . . . . . . Used . | . . . . . . Hacking Detections 7 | . 2 . 3 2 . Full Trace Events 3 | . 2 . 1 . . Feedback Events . | . . . . . . Feedback Blocked . | . . . . . . Robot Schematics Acquired . | . . . . . . Robots Built . | . . . . . . Authchips . | . . . . . . Time . | . . . . . . Total Robot Build Rating . | . . . . . . Part Schematics Acquired 2 | . 2 . . . . Parts Built . | . . . . . . Authchips . | . . . . . . Time . | . . . . . . Total Part Build Rating . | . . . . . . Part Studies Acquired 1 | . . . . 1 . Parts Repaired 1 | . . . 1 . . Time 53 | . . . 53 . . Parts Recycled . | . . . . . . Recycled Matter . | . . . . . . Retrieved Matter . | . . . . . . Retrieved Components . | . . . . . . Parts Scanalyzed . | . . . . . . Part Schematics Acquired . | . . . . . . Parts Damaged . | . . . . . . Bothacking | -11 -10 -10 -9 -8 -7 ------------ Run | Yrd Mat Min Mat Mat Fac Used RIF Installer . | . . . . . . Robots Hacked . | . . . . . . Non-combat . | . . . . . . Combat . | . . . . . . Robot Hacks Applied . | . . . . . . Relay Couplers Released . | . . . . . . Fabnet Peak Effective % . | . . . . . . Robots Rewired . | . . . . . . Allies Hacked . | . . . . . . Hacks Repelled . | . . . . . . Allies | -11 -10 -10 -9 -8 -7 -------- Run | Yrd Mat Min Mat Mat Fac Total Allies 3 | . . 3 . . . Largest Group 3 | . . 3 . . . Highest-Rated Group 40 | . . 40 . . . Highest-Rated Ally 16 | . . 16 . . . Total Orders . | . . . . . . Ally Attacks 1 | . . 1 . . . Total Damage 16 | . . 16 . . . Kills . | . . . . . . Allies Corrupted . | . . . . . . Allies Melted . | . . . . . . Intel | -11 -10 -10 -9 -8 -7 ------- Run | Yrd Mat Min Mat Mat Fac Active Infowar (turns) 859 | . . 152 . . 707 Sensors 145 | . . . . . 145 Structural 346 | . . . . . 346 Seismic 714 | . . 152 . . 562 Robot Analysis Total . | . . . . . . Derelict Logs Recovered . | . . . . . . Drone Launches . | . . . . . . Drone Recoveries . | . . . . . . Exploration | -11 -10 -10 -9 -8 -7 ------------- Run | Yrd Mat Min Mat Mat Fac Turns Passed 5885 | 223 882 640 1784 1634 722 Spaces Moved 2438 | 84 317 195 750 745 347 Core 6 | 6 . . . . . Treads 1751 | 78 317 116 148 745 347 Legs 11 | . . 11 . . . Wheels 670 | . . 68 602 . . Hover . | . . . . . . Flight . | . . . . . . Fastest Speed 50 | 50 160 140 110 160 160 Average Speed 173 | 152 236 263 142 161 160 Slowest Speed 400 | 160 320 400 240 240 240 Overloaded Moves . | . . . . . . Propulsion Burnouts . | . . . . . . Robots Hopped . | . . . . . . Potential Cave-ins . | . . . . . . Cave-ins Triggered . | . . . . . . Exploration Rate (%) 35 | 5 50 36 70 41 13 Regions Visited 5 Branch Regions 1 Pre-discovered Areas 1 | . . . 1 . . Known Exits Taken . | . . . . . . Unknown Exits Taken 5 | 1 1 1 1 1 . Scrap Searched . | . . . . . . Spaces Dug 19 | . . . 1 4 14 Terrain Destroyed 138 | . . . 30 38 70 Melee 19 | . . . 1 4 14 Projectile . | . . . . . . AOE 119 | . . . 29 34 56 Terrain Rammed . | . . . . . . Walls Destroyed . | . . . . . . Machines Disabled . | . . . . . . Actions | -11 -10 -10 -9 -8 -7 --------- Run | Yrd Mat Min Mat Mat Fac Total 3541 | 127 403 259 1218 1062 472 Wait 500 | . 30 17 219 156 78 Move 2433 | 83 316 194 749 744 347 Hop . | . . . . . . Pick Up 97 | 7 13 3 44 26 4 Fast Attach 27 | 6 4 2 7 4 4 Attach 28 | . . 4 11 10 3 Detach . | . . . . . . Swap 45 | . 4 4 15 16 6 Drop 80 | . 11 2 36 26 5 Fire 192 | 31 24 31 99 5 2 Melee 134 | . . . 37 74 23 Ram . | . . . . . . Kick . | . . . . . . Crush 5 | . 1 2 1 1 . Escape Stasis . | . . . . . . Rewire . | . . . . . . Trap . | . . . . . . Miscellaneous . | . . . . . . Route ------- -11/Scrapyard -10/Materials -10/Mines -9/Materials (discovered 2 exits: *Mat / [*Min]) -8/Materials (discovered 2 exits: *Fac / *Sto) -7/Factory (discovered 1 exit: [*Low]) History --------- Turn | Location | Event 9 | -11/Scrapyard | Discovered new exit (range 16) 224 | -11/Scrapyard | Entered Materials 332 | -10/Materials | Build established: Mutant 956 | -10/Materials | Discovered new exit (range 13) 1106 | -10/Materials | Entered Mines 1246 | -10/Mines | Found a hidden stash of uninstalled traps 1381 | -10/Mines | Discovered new exit (range 5) 1485 | -10/Mines | Assisted by bots powering up and referring to "LRC-V3" 1509 | -10/Mines | Assembled infested the area 1535 | -10/Mines | Core integrity fell below 50% 1560 | -10/Mines | Lost 3 allies 1567 | -10/Mines | Lost 4 parts (2n2w) 1746 | -10/Mines | Entered Materials 1746 | -9/Materials | Evolved 2 slots: Propulsion x2 2073 | -9/Materials | Build established: Scavenger-Mutant 2511 | -9/Materials | Discovered new exit (range 15) 2983 | -9/Materials | Repaired Corrupted Katana? 3346 | -9/Materials | First assault squad dispatched 3459 | -9/Materials | Discovered new exit (range 16) 3530 | -9/Materials | Entered another Materials area 3530 | -8/Materials | Evolved 2 slots: Propulsion x2 3558 | -8/Materials | Discovered new exit (range 13) 3616 | -8/Materials | Identified exit to Storage 4069 | -8/Materials | Discovered new exit (range 4) 4396 | -8/Materials | Lost 3 parts (2n1w) 4638 | -8/Materials | Build established: Scavenger-Gladiator 5164 | -8/Materials | Entered Factory 5164 | -7/Factory | Evolved 2 slots: Utility x2 5696 | -7/Factory | Discovered new exit (range 16) 5886 | -7/Factory | Self-destructed Last Messages --------------- Replicator. 05688_ U-05 Engineer builds a Wall. 05692_ K-01 Serf cleans the Subcomponent Replicator. 05696_ EXIT=FOUND 05705_ U-05 Engineer builds a Wall. 05808_ Lgt. Nuclear Core destroyed. 05836_ U-05 Engineer builds a Wall. 05845_ U-05 Engineer destroyed. 05847_ P-60 Hacker destroyed. 05849_ Nuclear Reactor explodes. 05850_ U-05 Engineer lays Concrete. 05851_ Nuclear Reactor explodes. 05851_ U-05 Engineer destroyed. 05855_ ALERT: Construction progress impeded, dispatching reinforcements to local area. 05864_ The unstable cave ceiling collapses. 05877_ G-47 Trooper Aluminum Leg severed. 05879_ Critical hit (Burn: +37). 05882_ V&JA8P6G%WZ:>AZ DCFJS6>GDEVOPMTGLD8R Map ----- +----------------------------------------------------+ | ?????????????????????????????????????????????????? | | ?????????????????????????????????????????????????? | | ?????????????????????????????????????????????????? | | ##################### ? ????????????????????????? | | ##################### ##??????????????????????? | | ##??????????????????????? | | ##??????????????????????? | | ##??????????????????????? | | ##??????????????????????? | | ##??????????????????????? | | ########+########### ??? ##??????????????????????? | | # ! ### ????????????????????????????? | | # """ """ """ ##??????????????????????????????? | | # """ """ """ ##??????????????????????????????? | | #! """ """ """ ##??????????????????????????????? | | # ##?? < ?????????????????????????? | | # """ """ """ ##? ?????????????????????????? | | #! """ """ """ ##? ?????????????????????????? | | # """ """ """ | ## [ ???????????????????????? | | #= #### ##???????????????????????? | | ##################### ##???????????????????????? | | ####### ! ! [ ! [ # ################?????????? | | ?????## ! # ################?????????? | | ?????## """ """ # # ##?????????? | | ?????## """"" """"" # # ##?????????? | | ?????## """"" """"" # =#@ ##?????????? | | ####### + gg ##?????????? | | ##################### # ##?????????? | | # k # gu ##?????????? | | # ######g ######?????????? | | # ## # ####?????????? | | # ^ ## #???????????? | | # ^ ## #???????????? | | # ########### "" ## # #???????????? | | # ########### "" # #???????????? | | # ##???????## """ # # #???????????? | | # ##???????## """ # #???????????? | | # ########?## ^""" # ##???????????? | | # ########?## # #????????????? | | # # """""" # # #########????? | | # # """""? # "Y" # ###########??? | | # # """""? # """ # ##??? | | # """""? # ###### """ """ ##??? | | # ? # ####### """ """? ##??? | | # ? ? # ##???## # """ ""???????? | | # ? # ##???## =% " # ???????? | | # ??T"" + ##???## [ """ # """ ""???????? | | # ??"""? # ?????## # """ "????????? | | ##???????? ?????######+#### ""???????????? | | ?????????????? # ????????????? | +----------------------------------------------------+ Best States ------------- Heat Dissipation 50 Energy Generation 14 Energy Capacity 280 Matter Stores 300 Matter Capacity 300 Sight Range 16 Robot Scan Range 15 Terrain Scan Density 10 Armor Coverage 225 Weapon Shielding 66 Evasion (%) 40 Melee Accuracy 6 Recoil Reduction 6 Item Schematics ----------------- Cargo Storage Unit | -10/Materials | Hacked Huge Storage Unit | -10/Materials | Hacked Robot Schematics ------------------ None Fabricated ------------ Nothing Repaired ---------- Katana | 88% | -9/Materials | Corrupted Studied --------- Katana | -8/Materials | Hacked Alien Tech Used ----------------- None Achievements -------------- None Challenges ------------ None Game ------ Seed DrainedTacticalSword Manual? 0 Play Time 00:30:40 Cumulative 469.8 hours Start 2026.07.18 @ 19:12:01 End 2026.07.18 @ 19:51:42 Sessions 1 Manual Loads 0 Difficulty Rogue Special Mode None Game No. 431 Rogue 431 Adventurer 0 Explorer 0 Win Type - Total 12 Types 7/0/2/1/0/0/0/1/0/1 Lore% 63 Gallery% 69 Achievement% 66 Wizard Run 0 Options --------- Layout 1 ASCII 0 Keyboard 0 Movement Mouse Keybinds 0 Fullscreen 2 Font 24/Cog Map View 50x35 Zoom Use 35% Tactical HUD 1 Map Filters NONE Filters NONE Steam 1 RUN: a6610443-d357-44cd-8b92-694e56c10dd1